[Event "76th ARM-ch Women 2021"]
[Site "Yerevan"]
[Date "2021.02.18"]
[Round "3.1"]
[White "Mkrtchyan, Mariam"]
[Black "Grigoryan, Arpine"]
[Result "1-0"]
[ECO "A00"]
[WhiteElo "2075"]
[BlackElo "2091"]
[Annotator "ChessBase"]
[PlyCount "51"]
[EventDate "2021.02.16"]
[EventType "tourn"]
[EventCountry "ARM"]
[SourceTitle "playchess.com"]
[Source "ChessBase"]
[SourceQuality "1"]
[TimeControl "40/5400+30:1800+30"]

1. g3 {[%emt 0:00:00]} Nf6 {[%emt 0:00:00]} 2. Bg2 {[%emt 0:00:00]} d5 {[%emt 0:01:54]} 3. Nf3 {[%emt 0:00:00]} e6 {[%emt 0:00:50]} 4. O-O {[%emt 0:00:09]} Be7 {[%emt 0:00:11]} 5. d3 {[%emt 0:00:16]} c5 {[%emt 0:02:21]} 6. Nbd2 {[%emt 0:00:07]} Nc6 {[%emt 0:00:37]} 7. e4 {[%emt 0:00:09]} dxe4 {[%emt 0:02:33]} 8. dxe4 {[%emt 0:00:09]} e5 {[%emt 0:01:19]} 9. c3 {[%emt 0:01:47]} O-O {[%emt 0:01:34]} 10. Qe2 {[%emt 0:07:32]} Qc7 {[%emt 0:02:41]} 11. Nc4 {[%emt 0:02:03]} Be6 {[%emt 0:05:19]} 12. Nh4 {[%emt 0:02:33]} Ne8 {[%emt 0:05:53]} 13. Nf5 {[%emt 0:02:49]} Bxc4 {[%emt 0:07:23]} 14. Qxc4 {[%emt 0:00:20]} Nd6 {[%emt 0:00:19]} 15. Qe2 {[%emt 0:02:20]} Nxf5 {[%emt 0:01:44]} 16. exf5 {[%emt 0:00:16]} f6 {[%emt 0:04:19]} 17. Be3 {[%emt 0:02:52]} Na5 {[%emt 0:04:21]} 18. Rad1 {[%emt 0:03:01]} Rad8 {[%emt 0:04:17]} 19. h4 {[%emt 0:02:50]} Rxd1 {[%emt 0:03:22]} 20. Rxd1 {[%emt 0:00:51]} Rd8 {[%emt 0:00:11]} 21. Rd5 {[%emt 0:02:57]} a6 {[%emt 0:04:09]} 22. Qd3 {[%emt 0:11:15]} c4 {[%emt 0:08:56]} 23. Rxd8+ {[%emt 0:00:36]} Bxd8 {[%emt 0:00:07]} 24. Qd5+ {[%emt 0:01:21]} Kh8 {[%emt 0:01:16]} 25. Qe6 {[%emt 0:01:05]} Qe7 {[%emt 0:00:46]} 26. Bc5 {[%emt 0:00:21]} 1-0

[Event "76th ARM-ch Women 2021"]
[Site "Yerevan"]
[Date "2021.02.18"]
[Round "3.2"]
[White "Gaboyan, Susanna"]
[Black "Khachatryan, Anna"]
[Result "1-0"]
[ECO "B30"]
[WhiteElo "2211"]
[BlackElo "2086"]
[Annotator "ChessBase"]
[PlyCount "135"]
[EventDate "2021.02.16"]
[EventType "tourn"]
[EventCountry "ARM"]
[SourceTitle "playchess.com"]
[Source "ChessBase"]
[SourceQuality "1"]
[TimeControl "40/5400+30:1800+30"]

1. e4 {[%emt 0:00:00]} c5 {[%emt 0:00:00]} 2. Nf3 {[%emt 0:00:23]} Nc6 {[%emt 0:00:00]} 3. Nc3 {[%emt 0:00:48]} e5 {[%emt 0:03:16]} 4. Bc4 {[%emt 0:00:49]} d6 {[%emt 0:00:28]} 5. d3 {[%emt 0:00:34]} Be7 {[%emt 0:00:05]} 6. Nd2 {[%emt 0:01:44]} Bg5 {[%emt 0:00:27]} 7. Nf1 {[%emt 0:03:22]} Bxc1 {[%emt 0:00:57]} 8. Rxc1 {[%emt 0:06:56]} Nf6 {[%emt 0:05:56]} 9. Ne3 {[%emt 0:03:06]} Be6 {[%emt 0:02:45]} 10. Ncd5 {[%emt 0:03:35]} a6 {[%emt 0:07:14]} 11. O-O {[%emt 0:02:46]} O-O {[%emt 0:02:39]} 12. f4 {[%emt 0:05:09]} exf4 {[%emt 0:05:30]} 13. Rxf4 {[%emt 0:01:00]} Bxd5 {[%emt 0:16:22]} 14. Nxd5 {[%emt 0:00:26]} Nxd5 {[%emt 0:00:06]} 15. Bxd5 {[%emt 0:00:09]} Qg5 {[%emt 0:06:18]} 16. Qg4 {[%emt 0:01:18]} Qxg4 {[%emt 0:10:17]} 17. Rxg4 {[%emt 0:00:18]} Ne5 {[%emt 0:00:20]} 18. Rg3 {[%emt 0:01:56]} Ra7 {[%emt 0:05:26]} 19. c3 {[%emt 0:00:40]} b6 {[%emt 0:01:23]} 20. d4 {[%emt 0:03:58]} Ng6 {[%emt 0:02:36]} 21. Rf1 {[%emt 0:00:09]} Ne7 {[%emt 0:08:26]} 22. Bb3 {[%emt 0:03:20]} Nc6 {[%emt 0:07:21]} 23. Rf6 {[%emt 0:03:01]} Rd8 {[%emt 0:02:53]} 24. Bd5 {[%emt 0:03:55]} Kf8 {[%emt 0:07:37]} 25. Rf1 {[%emt 0:08:16]} Rc8 {[%emt 0:00:18]} 26. Rgf3 {[%emt 0:02:07]} f6 {[%emt 0:01:04]} 27. Rd1 {[%emt 0:05:30]} Re7 {[%emt 0:00:57]} 28. a3 {[%emt 0:00:54]} Nd8 {[%emt 0:02:07]} 29. g4 {[%emt 0:03:09]} h6 {[%emt 0:00:59]} 30. h4 {[%emt 0:00:14]} Nf7 {[%emt 0:00:32]} 31. Rdf1 {[%emt 0:05:05]} cxd4 {[%emt 0:00:28]} 32. cxd4 {[%emt 0:00:03]} Rc2 {[%emt 0:00:06]} 33. Rc3 {[%emt 0:02:56]} Rc7 {[%emt 0:00:20]} 34. Rff3 {[%emt 0:02:01]} Ke7 {[%emt 0:01:06]} 35. Rxc7+ {[%emt 0:06:02]} Rxc7 {[%emt 0:00:02]} 36. Rb3 {[%emt 0:00:12]} b5 {[%emt 0:00:25]} 37. Rc3 {[%emt 0:08:00]} Rxc3 {[%emt 0:01:02]} 38. bxc3 {[%emt 0:00:03]} Nd8 {[%emt 0:00:10]} 39. h5 {[%emt 0:00:41]} Ne6 {[%emt 0:00:55]} 40. Kf2 {[%emt 0:00:00]} Nf4 {[%emt 0:00:00]} 41. Bb7 {[%emt 0:09:35]} a5 {[%emt 0:00:38]} 42. Ke3 {[%emt 0:02:31]} Ng2+ {[%emt 0:11:17]} 43. Kd2 {[%emt 0:01:35]} Kd7 {[%emt 0:02:35]} 44. e5 {[%emt 0:03:28]} Nf4 {[%emt 0:00:30]} 45. exf6 {[%emt 0:00:09]} gxf6 {[%emt 0:00:01]} 46. Ke3 {[%emt 0:00:15]} Ne6 {[%emt 0:06:46]} 47. Ke4 {[%emt 0:00:40]} Ng7 {[%emt 0:00:05]} 48. Bd5 {[%emt 0:11:32]} Kc7 {[%emt 0:02:21]} 49. Bg8 {[%emt 0:02:26]} Kc6 {[%emt 0:00:07]} 50. Bf7 {[%emt 0:00:23]} Kc7 {[%emt 0:03:34]} 51. Kd5 {[%emt 0:02:51]} Kd7 {[%emt 0:01:13]} 52. Bg6 {[%emt 0:00:20]} Kc7 {[%emt 0:00:07]} 53. Bd3 {[%emt 0:00:17]} Kd7 {[%emt 0:02:00]} 54. Bxb5+ {[%emt 0:00:09]} Kc7 {[%emt 0:00:02]} 55. a4 {[%emt 0:02:50]} f5 {[%emt 0:00:23]} 56. g5 {[%emt 0:00:08]} Nxh5 {[%emt 0:01:15]} 57. gxh6 {[%emt 0:00:25]} Nf4+ {[%emt 0:00:35]} 58. Kc4 {[%emt 0:00:03]} Ng6 {[%emt 0:02:44]} 59. Be8 {[%emt 0:00:57]} Nf8 {[%emt 0:00:13]} 60. Bf7 {[%emt 0:00:15]} f4 {[%emt 0:00:34]} 61. Kd3 {[%emt 0:00:07]} Kd7 {[%emt 0:00:15]} 62. Bg8 {[%emt 0:00:06]} Ke7 {[%emt 0:00:13]} 63. Ke4 {[%emt 0:00:19]} Kf6 {[%emt 0:01:07]} 64. Kxf4 {[%emt 0:00:14]} Ng6+ {[%emt 0:00:08]} 65. Ke4 {[%emt 0:00:06]} Ne7 {[%emt 0:00:03]} 66. h7 {[%emt 0:02:13]} Kg7 {[%emt 0:00:03]} 67. Kd3 {[%emt 0:00:25]} Nc6 {[%emt 0:00:36]} 68. Ke4 1-0

[Event "76th ARM-ch Women 2021"]
[Site "Yerevan"]
[Date "2021.02.18"]
[Round "3.3"]
[White "Khachatryan, Veronika"]
[Black "Gevorgyan, Maria"]
[Result "1/2-1/2"]
[ECO "A67"]
[WhiteElo "1767"]
[BlackElo "2228"]
[Annotator "ChessBase"]
[PlyCount "72"]
[EventDate "2021.02.16"]
[EventType "tourn"]
[EventCountry "ARM"]
[SourceTitle "playchess.com"]
[Source "ChessBase"]
[SourceQuality "1"]
[TimeControl "40/5400+30:1800+30"]

1. d4 {[%emt 0:00:00]} Nf6 {[%emt 0:00:00]} 2. c4 {[%emt 0:00:00]} c5 {[%emt 0:00:01]} 3. d5 {[%emt 0:00:00]} e6 {[%emt 0:00:26]} 4. Nc3 {[%emt 0:00:13]} exd5 {[%emt 0:00:07]} 5. cxd5 {[%emt 0:00:04]} d6 {[%emt 0:00:04]} 6. e4 {[%emt 0:00:08]} g6 {[%emt 0:00:08]} 7. f4 {[%emt 0:00:17]} Bg7 {[%emt 0:00:18]} 8. Bb5+ {[%emt 0:00:13]} Nfd7 {[%emt 0:00:06]} 9. Nf3 {[%emt 0:00:19]} a6 {[%emt 0:00:59]} 10. Bd3 {[%emt 0:00:04]} b5 {[%emt 0:00:20]} 11. O-O {[%emt 0:00:47]} O-O {[%emt 0:04:47]} 12. Kh1 {[%emt 0:00:07]} f5 {[%emt 0:08:43]} 13. exf5 {[%emt 0:02:59]} gxf5 {[%emt 0:00:19]} 14. Ng5 {[%emt 0:17:23]} Nf6 {[%emt 0:07:15]} 15. Ne6 {[%emt 0:01:42]} Bxe6 {[%emt 0:00:54]} 16. dxe6 {[%emt 0:00:02]} b4 {[%emt 0:04:42]} 17. Qb3 {[%emt 0:07:27]} Kh8 {[%emt 0:03:25]} 18. Nd5 {[%emt 0:05:23]} Nc6 {[%emt 0:00:15]} 19. Bxf5 {[%emt 0:06:58]} Nxd5 {[%emt 0:22:45]} 20. Be4 Nde7 {[%emt 0:07:34]} 21. Qh3 {[%emt 0:00:17]} h6 {[%emt 0:00:23]} 22. f5 {[%emt 0:00:33]} Rf6 {[%emt 0:00:33]} 23. g4 {[%emt 0:03:10]} d5 {[%emt 0:19:04]} 24. g5 {[%emt 0:02:23]} Rxe6 {[%emt 0:00:05]} 25. fxe6 {[%emt 0:01:52]} dxe4 {[%emt 0:00:12]} 26. Be3 {[%emt 0:15:01]} Nd5 {[%emt 0:09:55]} 27. Rf7 {[%emt 0:19:43]} Nxe3 {[%emt 0:08:05]} 28. Rxg7 {[%emt 0:00:06]} Kxg7 {[%emt 0:00:11]} 29. Qxh6+ {[%emt 0:00:07]} Kg8 {[%emt 0:00:04]} 30. Qg6+ {[%emt 0:00:44]} Kh8 {[%emt 0:00:01]} 31. Qh5+ {[%emt 0:02:56]} Kg8 {[%emt 0:00:02]} 32. Qf7+ {[%emt 0:00:18]} Kh8 {[%emt 0:00:00]} 33. Qh5+ {[%emt 0:03:18]} Kg8 {[%emt 0:00:05]} 34. Qg6+ {[%emt 0:00:31]} Kh8 {[%emt 0:00:08]} 35. Qh6+ {[%emt 0:00:41]} Kg8 {[%emt 0:00:02]} 36. Qg6+ {[%emt 0:00:23]} Kh8 {[%emt 0:00:06]} 1/2-1/2

[Event "76th ARM-ch Women 2021"]
[Site "Yerevan"]
[Date "2021.02.18"]
[Round "3.4"]
[White "Arakelyan, Nare"]
[Black "Ghukasyan, Siranush"]
[Result "0-1"]
[ECO "C85"]
[WhiteElo "1953"]
[BlackElo "2222"]
[Annotator "ChessBase"]
[PlyCount "78"]
[EventDate "2021.02.16"]
[EventType "tourn"]
[EventCountry "ARM"]
[SourceTitle "playchess.com"]
[Source "ChessBase"]
[SourceQuality "1"]
[TimeControl "40/5400+30:1800+30"]

1. e4 {[%emt 0:00:00]} e5 {[%emt 0:00:00]} 2. Nf3 {[%emt 0:00:00]} Nc6 {[%emt 0:00:00]} 3. Bb5 {[%emt 0:00:22]} a6 {[%emt 0:00:00]} 4. Ba4 {[%emt 0:00:05]} Nf6 {[%emt 0:00:03]} 5. O-O {[%emt 0:00:04]} Be7 {[%emt 0:00:19]} 6. Bxc6 {[%emt 0:00:24]} dxc6 {[%emt 0:00:38]} 7. d3 {[%emt 0:00:19]} Nd7 {[%emt 0:03:16]} 8. Nbd2 {[%emt 0:00:16]} O-O {[%emt 0:00:21]} 9. Nc4 {[%emt 0:00:06]} Bf6 {[%emt 0:07:17]} 10. b3 {[%emt 0:05:19]} Re8 {[%emt 0:02:03]} 11. Bb2 {[%emt 0:00:26]} g6 {[%emt 0:07:43]} 12. g3 {[%emt 0:09:29]} Bg7 {[%emt 0:03:55]} 13. Qd2 {[%emt 0:02:44]} f6 {[%emt 0:09:09]} 14. h4 {[%emt 0:02:25]} Nf8 {[%emt 0:04:11]} 15. Kg2 {[%emt 0:05:45]} h5 {[%emt 0:02:11]} 16. Ng1 {[%emt 0:02:14]} Ne6 {[%emt 0:05:29]} 17. Ne2 {[%emt 0:05:30]} Qd7 {[%emt 0:09:00]} 18. Rh1 {[%emt 0:04:22]} b5 {[%emt 0:06:01]} 19. Ne3 {[%emt 0:01:31]} c5 {[%emt 0:01:45]} 20. Rag1 {[%emt 0:11:38]} Bb7 {[%emt 0:00:50]} 21. f3 {[%emt 0:02:04]} Bh6 {[%emt 0:01:09]} 22. Kf2 {[%emt 0:00:35]} Kh7 {[%emt 0:04:24]} 23. g4 {[%emt 0:01:03]} hxg4 {[%emt 0:02:38]} 24. Nxg4 {[%emt 0:01:12]} Qg7 {[%emt 0:02:35]} 25. Qd1 {[%emt 0:03:48]} Bf4 {[%emt 0:01:42]} 26. Nxf4 {[%emt 0:06:07]} Nxf4 {[%emt 0:00:26]} 27. Bc1 {[%emt 0:01:30]} Nh5 {[%emt 0:00:56]} 28. Be3 {[%emt 0:02:20]} Qf8 {[%emt 0:03:40]} 29. Qd2 {[%emt 0:00:34]} f5 {[%emt 0:01:41]} 30. exf5 {[%emt 0:03:23]} gxf5 {[%emt 0:04:49]} 31. Bh6 {[%emt 0:02:18]} Qd6 {[%emt 0:03:33]} 32. Qg5 {[%emt 0:08:18]} fxg4 {[%emt 0:00:54]} 33. Qxh5 {[%emt 0:00:46]} Qxh6 {[%emt 0:00:23]} 34. Qf5+ {[%emt 0:01:46]} Qg6 {[%emt 0:04:13]} 35. Qd7+ {[%emt 0:00:26]} Qg7 {[%emt 0:00:29]} 36. Qf5+ {[%emt 0:00:10]} Qg6 {[%emt 0:00:04]} 37. Qd7+ {[%emt 0:00:09]} Kh6 {[%emt 0:01:25]} 38. Rxg4 {[%emt 0:00:33]} Qf6 {[%emt 0:00:07]} 39. Rhg1 {[%emt 0:00:42]} Qxf3+ {[%emt 0:00:10]} 0-1

[Event "76th ARM-ch Women 2021"]
[Site "Yerevan"]
[Date "2021.02.18"]
[Round "3.5"]
[White "Hakobyan, Astghik"]
[Black "Avetisyan, Mariam"]
[Result "0-1"]
[ECO "B15"]
[WhiteElo "1820"]
[BlackElo "2092"]
[Annotator "ChessBase"]
[PlyCount "132"]
[EventDate "2021.02.16"]
[EventType "tourn"]
[EventCountry "ARM"]
[SourceTitle "playchess.com"]
[Source "ChessBase"]
[SourceQuality "1"]
[TimeControl "40/5400+30:1800+30"]

1. e4 {[%emt 0:00:00]} c6 {[%emt 0:00:00]} 2. d4 {[%emt 0:00:00]} d5 {[%emt 0:00:00]} 3. Nd2 {[%emt 0:00:00]} dxe4 {[%emt 0:00:00]} 4. Nxe4 {[%emt 0:00:00]} Nf6 {[%emt 0:00:00]} 5. Nxf6+ {[%emt 0:00:14]} exf6 {[%emt 0:00:00]} 6. c3 {[%emt 0:00:06]} Bd6 {[%emt 0:00:03]} 7. Bd3 {[%emt 0:00:15]} O-O {[%emt 0:00:08]} 8. Qc2 {[%emt 0:00:12]} Re8+ {[%emt 0:00:05]} 9. Ne2 {[%emt 0:00:05]} h5 {[%emt 0:00:07]} 10. Be3 {[%emt 0:00:32]} h4 {[%emt 0:12:51]} 11. O-O-O {[%emt 0:08:54]} Qa5 {[%emt 0:14:08]} 12. Kb1 {[%emt 0:00:44]} Be6 {[%emt 0:04:33]} 13. Nc1 {[%emt 0:11:25]} b5 {[%emt 0:14:30]} 14. Qe2 {[%emt 0:13:17]} g6 {[%emt 0:13:32]} 15. h3 {[%emt 0:07:08]} Qc7 {[%emt 0:08:21]} 16. Qd2 {[%emt 0:19:05]} Nd7 {[%emt 0:02:48]} 17. g3 {[%emt 0:01:10]} hxg3 {[%emt 0:06:32]} 18. fxg3 {[%emt 0:00:30]} Nb6 {[%emt 0:02:45]} 19. Bf4 {[%emt 0:03:26]} Bd5 {[%emt 0:06:45]} 20. Rhg1 {[%emt 0:03:42]} Nc4 {[%emt 0:00:36]} 21. Qf2 {[%emt 0:00:40]} Rab8 {[%emt 0:03:34]} 22. Bxd6 {[%emt 0:06:18]} Qxd6 {[%emt 0:00:09]} 23. Qf4 {[%emt 0:01:30]} Qxf4 {[%emt 0:02:49]} 24. gxf4 {[%emt 0:00:01]} f5 {[%emt 0:01:46]} 25. Nb3 {[%emt 0:03:11]} Be4 {[%emt 0:01:40]} 26. Nc5 {[%emt 0:02:09]} Bxd3+ {[%emt 0:00:04]} 27. Nxd3 {[%emt 0:00:12]} Re3 {[%emt 0:01:17]} 28. h4 {[%emt 0:01:31]} Rh3 {[%emt 0:01:12]} 29. Rh1 {[%emt 0:01:58]} Rxh1 {[%emt 0:00:03]} 30. Rxh1 {[%emt 0:00:02]} Re8 {[%emt 0:01:03]} 31. Ne5 {[%emt 0:06:06]} Nxe5 {[%emt 0:00:05]} 32. dxe5 {[%emt 0:03:15]} Rd8 {[%emt 0:01:12]} 33. Kc2 {[%emt 0:01:27]} Kg7 {[%emt 0:00:20]} 34. a4 {[%emt 0:04:26]} a6 {[%emt 0:00:41]} 35. axb5 {[%emt 0:00:19]} axb5 {[%emt 0:00:02]} 36. Kb3 {[%emt 0:01:40]} Rd2 {[%emt 0:01:04]} 37. h5 {[%emt 0:00:18]} Rf2 {[%emt 0:00:58]} 38. hxg6 {[%emt 0:01:30]} fxg6 {[%emt 0:00:34]} 39. Rh4 {[%emt 0:00:28]} c5 {[%emt 0:00:05]} 40. Ka3 {[%emt 0:00:00]} Re2 {[%emt 0:00:00]} 41. Kb3 {[%emt 0:10:03]} Rf2 {[%emt 0:09:08]} 42. Ka2 {[%emt 0:01:26]} Kf7 {[%emt 0:03:04]} 43. Kb1 {[%emt 0:03:43]} Ke6 {[%emt 0:00:07]} 44. Kc1 {[%emt 0:01:14]} Kd5 {[%emt 0:00:11]} 45. Rh6 {[%emt 0:05:16]} Rxf4 {[%emt 0:00:14]} 46. Rxg6 {[%emt 0:00:01]} Kxe5 {[%emt 0:00:08]} 47. Rb6 {[%emt 0:00:06]} b4 {[%emt 0:02:01]} 48. cxb4 {[%emt 0:00:31]} Rxb4 {[%emt 0:01:35]} 49. Rc6 {[%emt 0:00:32]} Kd5 {[%emt 0:02:12]} 50. Rf6 {[%emt 0:01:45]} Ke4 {[%emt 0:02:07]} 51. Kc2 {[%emt 0:00:49]} f4 {[%emt 0:01:16]} 52. Re6+ {[%emt 0:03:02]} Kf3 {[%emt 0:00:57]} 53. Re5 {[%emt 0:02:12]} Rb5 {[%emt 0:00:05]} 54. Kd1 {[%emt 0:02:36]} Rxb2 {[%emt 0:09:12]} 55. Rxc5 {[%emt 0:00:12]} Rb1+ {[%emt 0:00:33]} 56. Kd2 {[%emt 0:00:10]} Kf2 {[%emt 0:01:22]} 57. Rc8 {[%emt 0:01:26]} f3 {[%emt 0:00:53]} 58. Rf8 {[%emt 0:04:28]} Rb7 {[%emt 0:00:15]} 59. Rd8 {[%emt 0:01:33]} Re7 {[%emt 0:00:39]} 60. Rd6 {[%emt 0:00:21]} Kf1 {[%emt 0:01:03]} 61. Rd8 {[%emt 0:00:31]} f2 {[%emt 0:00:24]} 62. Rd6 {[%emt 0:00:39]} Re2+ {[%emt 0:00:17]} 63. Kd1 {[%emt 0:00:15]} Re1+ {[%emt 0:00:06]} 64. Kd2 {[%emt 0:00:06]} Kg2 {[%emt 0:00:08]} 65. Rg6+ {[%emt 0:00:18]} Kh3 {[%emt 0:00:06]} 66. Rh6+ {[%emt 0:00:48]} Kg4 {[%emt 0:00:06]} 0-1

[Event "76th ARM-ch Women 2021"]
[Site "Yerevan"]
[Date "2021.02.20"]
[Round "5.5"]
[White "Khachatryan, Veronika"]
[Black "Hakobyan, Astghik"]
[Result "1-0"]
[ECO "B13"]
[WhiteElo "1767"]
[BlackElo "1820"]
[Annotator "NA RC"]
[PlyCount "143"]
[EventDate "2021.02.16"]
[EventType "tourn"]
[EventCountry "ARM"]
[SourceTitle "playchess.com"]
[Source "ChessBase"]
[SourceQuality "1"]
[TimeControl "40/5400+30:1800+30"]

{[%evp 8,143,24,1,38,17,34,-9,71,73,58,54,170,152,151,83,79,76,90,83,93,25,27,16,28,19,31,24,44,29,79,36,36,54,50,17,27,-42,-37,-51,-45,-31,-32,-57,-4,0,-2,-18,0,0,0,0,69,0,0,0,0,0,-8,-14,-7,-179,-168,-175,-128,-171,-12,-8,0,0,100,107,90,36,34,18,87,85,55,35,88,32767,32767,32767,32767,32767,32767,32767,32767,32767,32767,32767,32767,216,398,358,293,425,540,575,564,649,558,586,744,834,1779,757,4952,1609,1752,474,32767,32767,32767,32767,32767,32767,32767,32767,32767,1195,12843,1650,12071,2243,1825,12843,29978,29980,29985,29982,29987,29987,29991,29992,29992,29989]} 1. e4 {[%emt 0:00:00]} c6 {[%emt 0:00:20]} 2. d4 {[%emt 0:00:00]} d5 {[%emt 0:00:06]} 3. exd5 {[%emt 0:00:04]} cxd5 {[%emt 0:00:09]} 4. c4 {[%emt 0:00:11]} Nf6 {[%emt 0:00:37]} 5. Nc3 {[%emt 0:00:14]} Be6 {[%emt 0:06:26]} 6. Qb3 {[%emt 0:19:22]} Nc6 {[%emt 0:11:33]} 7. cxd5 {[%emt 0:18:09]} Bxd5 {[%emt 0:10:15]} (7... Nxd5 $11 {keeps the balance.} 8. Qxb7 Nxd4 9. Bb5+ Nxb5 10. Qxb5+ Qd7) 8. Nxd5 {[%emt 0:01:40]} Nxd5 {[%emt 0:02:08]} 9. Qxb7 {[%emt 0:01:52]} Ndb4 {[%emt 0:19:36]} (9... Qc8 $1 $14 10. Qxc8+ Rxc8) 10. Bb5 {[%emt 0:01:57]} Qc8 {[%emt 0:00:27]} 11. Bxc6+ {[%emt 0:06:27]} (11. Qxc8+ $18 Rxc8 12. Ba4) 11... Nxc6 {[%emt 0:00:02] [#]} 12. Qxc8+ $1 {[%emt 0:00:07]} Rxc8 {[%emt 0:00:02]} 13. Nf3 {[%emt 0:00:44]} g6 {[%emt 0:02:30]} 14. Bd2 {[%emt 0:06:15]} ({White should play} 14. Be3 $16) 14... Bg7 {[%emt 0:02:12]} 15. Bc3 {[%emt 0:00:06]} O-O {[%emt 0:01:34]} 16. Ke2 {[%emt 0:06:11]} Rfd8 {[%emt 0:02:07]} 17. Rhd1 {[%emt 0:00:25]} e6 {[%emt 0:01:26]} 18. g3 {[%emt 0:14:27]} Ne7 {[%emt 0:08:06]} 19. Bb4 {[%emt 0:02:17]} Nf5 {[%emt 0:01:22]} 20. Bc5 {[%emt 0:06:53]} e5 {[%emt 0:01:36]} 21. Bxa7 {[%emt 0:01:01]} exd4 {[%emt 0:08:44]} 22. Kd3 {[%emt 0:06:03]} ({Better is} 22. a4 $14) 22... Rd7 {[%emt 0:03:21]} 23. Bb6 $1 {[%emt 0:00:03]} Rb7 $1 {[%emt 0:02:07]} 24. Ba5 $1 {[%emt 0:00:44]} Rxb2 {[%emt 0:00:01]} 25. Bd2 {[%emt 0:00:16]} Ra8 {[%emt 0:01:21]} 26. Rdb1 {[%emt 0:02:06]} Ra3+ {[%emt 0:02:44]} ({Don't go for} 26... Raxa2 $2 27. Rxa2 Rxb1 28. g4 $18 (28. Ra8+ Bf8 $14)) 27. Ke4 {[%emt 0:03:08]} d3 {[%emt 0:11:47]} 28. Rxb2 {[%emt 0:00:53]} Bxb2 {[%emt 0:00:01]} 29. Rb1 {[%emt 0:00:11]} Bf6 {[%emt 0:00:50] [#]} ({Better is} 29... Rxa2 $11 30. Kxd3 Ra3+ 31. Ke2 Bc3) 30. g4 {[%emt 0:01:02]} (30. Rb8+ $1 $16 Kg7 31. Bb4) 30... Nd6+ {[%emt 0:00:50]} 31. Kd5 {[%emt 0:00:05]} Be7 $1 {[%emt 0:00:28]} 32. Bh6 {[%emt 0:01:31]} Ra8 {[%emt 0:00:24]} 33. Ne5 {[%emt 0:00:41]} Ne8 {[%emt 0:00:30]} 34. Rb7 $2 {[%emt 0:01:05]} ({Much worse is} 34. Nxd3 Nf6+ {[%mdl 64] Double Attack} 35. Kc4 Nxg4 $17) (34. h3 $11 {and White has nothing to worry.}) 34... Rd8+ {[%emt 0:00:32]} 35. Kc6 {[%emt 0:00:27]} Rd6+ {[%emt 0:00:20]} ({Of course not} 35... d2 $6 36. Bxd2 Rd6+ 37. Kc5 $11) 36. Kc5 {[%emt 0:00:39] [#]} Re6+ $2 {[%emt 0:00:40]} (36... Bf8 $1 $19 37. Bd2 Rd8+ 38. Kc6 Rc8+ 39. Kd5 Rc2) 37. Kd5 $1 {[%emt 0:00:29]} Nf6+ {[%emt 0:00:37]} 38. Kd4 {[%emt 0:00:00]} Ne8 {[%emt 0:00:25]} (38... Bd6 $11 {keeps the balance.} 39. Nxf7 Be7) 39. Nxd3 {[%emt 0:00:44]} g5 {[%emt 0:00:27]} 40. Rb8 {[%emt 0:00:00]} Bd6 {[%emt 0:00:00]} 41. Ra8 {[%emt 0:02:44]} f6 {[%emt 0:12:38]} 42. f4 {[%emt 0:02:17]} Kf7 {[%emt 0:00:42]} 43. fxg5 {[%emt 0:00:46]} fxg5 {[%emt 0:00:33]} 44. Bxg5 {[%emt 0:06:59]} Nc7 {[%emt 0:04:50]} 45. Ra5 {[%emt 0:03:57]} Bxh2 {[%emt 0:00:57]} 46. Ne5+ {[%emt 0:03:43]} Bxe5+ {[%emt 0:07:49]} 47. Rxe5 {[%emt 0:00:06]} Ra6 {[%emt 0:00:10]} 48. Re7+ {[%emt 0:00:58]} Kg6 {[%emt 0:00:01]} 49. Be3 {[%emt 0:01:43]} Ne6+ {[%emt 0:02:04] [#]} 50. Kd5 $1 {[%emt 0:01:59]} Ng5 {[%emt 0:03:38]} (50... Nd8 $142 51. Ra7 Re6) 51. Ra7 {[%emt 0:02:11]} Rf6 {[%emt 0:00:01]} 52. a4 {[%emt 0:02:36]} Nf7 {[%emt 0:01:05]} 53. a5 {[%emt 0:01:05]} Rd6+ {[%emt 0:00:40]} 54. Kc5 {[%emt 0:00:29]} Re6 {[%emt 0:00:16]} 55. Bd4 {[%emt 0:00:34]} Re2 {[%emt 0:02:43]} 56. a6 {[%emt 0:02:57]} Nd8 {[%emt 0:00:17]} 57. Rg7+ {[%emt 0:01:33]} Kh6 {[%emt 0:00:01]} 58. a7 {[%emt 0:00:14]} Ra2 {[%emt 0:01:11]} 59. g5+ {[%emt 0:01:14]} (59. Bc3 $142) 59... Kh5 {[%emt 0:00:06]} 60. Kd5 {[%emt 0:00:15]} Ra5+ {[%emt 0:00:27]} 61. Bc5 {[%emt 0:00:06]} Ra6 {[%emt 0:00:46]} 62. Rg8 {[%emt 0:02:15]} Ne6 {[%emt 0:00:08]} 63. Be3 {[%emt 0:00:56]} Nc7+ {[%emt 0:00:32]} 64. Kc4 {[%emt 0:00:51]} Ra3 {[%emt 0:00:26] [#]} 65. Bb6 {[%emt 0:00:44]} (65. Rg7 $142 $1 Rxe3 (65... Ne6 66. Rxh7+) 66. Rxh7+ Kg6 67. Rxc7) 65... h6 {[%emt 0:00:23]} 66. g6 {[%emt 0:00:31]} (66. gxh6 $142 Kxh6 67. Rc8 Ra4+ 68. Kb3 Rxa7 69. Bxa7) 66... Ra6 {[%emt 0:00:14]} 67. Bxc7 {[%emt 0:00:20]} Rxa7 {[%emt 0:00:02]} 68. Be5 {[%emt 0:00:17]} Ra5 {[%emt 0:00:31]} 69. Bd4 {[%emt 0:00:33]} Rg5 {[%emt 0:00:17]} 70. g7 {[%emt 0:00:05]} Kg6 {[%emt 0:00:18]} 71. Rf8 {[%emt 0:00:13]} Kh7 {[%emt 0:00:09]} 72. Rh8+ {[%emt 0:00:04]} 1-0